fUSD/lending_fUSD_20240915
["ID","MTS","AMOUNT","RATE_DAILY","PERIOD"]
[338184719,1726377050344,-554.8,0.00013273,2]
[338184720,1726377050353,-500.0,0.00013273,2]
[338184721,1726377050362,-500.0,0.00013273,2]
[338184722,1726377050371,-500.0,0.00013273,2]
[338184723,1726377050380,-385.81371966,0.00013273,2]
[338184724,1726377051432,-510.16644197,0.00012999,2]
[338184725,1726377051443,-500.0,0.00012999,2]
[338184726,1726377051453,-114.18628034,0.00013273,2]
[338184727,1726377051463,-929.7,0.00013273,2]
[338184728,1726377051473,-500.0,0.00013273,2]
[338184729,1726377051483,-570.17,0.00013273,2]
[338184730,1726377051493,-562.25,0.00013273,2]
[338184731,1726377051502,-5000.0,0.00013273,2]
[338184732,1726377051512,-410.17100883,0.00013273,2]
[338184733,1726377051523,-89.82899117,0.00013273,2]
[338184734,1726377051533,-500.0,0.00013273,2]
[338184735,1726377051542,-500.0,0.00013273,2]
[338184736,1726377051553,-500.0,0.00013273,2]
[338184737,1726377051563,-2894.49,0.00013273,2]
[338184738,1726377051574,-296.72726797,0.00013273,2]
[338184739,1726377051583,-535.16,0.00013273,2]
[338184740,1726377051595,-500.0,0.00013273,2]
[338184741,1726377051605,-1497.48,0.00013273,2]
[338184742,1726377051616,-555.7,0.00013273,2]
[338184743,1726377051627,-500.0,0.00013273,2]
[338184744,1726377051637,-577.83253559,0.00013273,2]
[338184745,1726377051650,-2025.57746441,0.00013273,2]
[338184746,1726377051660,-500.0,0.00013273,2]
[338184747,1726377051670,-500.0,0.00013273,2]
[338184748,1726377051679,-500.0,0.00013273,2]
[338184749,1726377051688,-500.0,0.00013273,2]
[338184750,1726377051698,-500.0,0.00013273,2]
[338184751,1726377051707,-500.0,0.00013273,2]
[338184752,1726377051715,-672.91,0.00013273,2]
[338184753,1726377051725,-500.0,0.00013273,2]
[338184754,1726377051734,-500.0,0.00013273,2]
[338184755,1726377051744,-689.51,0.00013273,2]
[338184756,1726377051753,-500.0,0.00013273,2]
[338184757,1726377051762,-500.0,0.00013273,2]
[338184758,1726377051771,-555.78640021,0.00013273,2]
[338184759,1726377051785,-261.54359979,0.00013273,2]
[338184760,1726377051794,-215.66541877,0.00013273,2]
[338184761,1726377051803,-500.0,0.00013273,2]
[338184762,1726377051812,-657.63,0.00013273,2]
[338184763,1726377051820,-500.0,0.00013273,2]
[338184764,1726377051829,-500.0,0.00013273,2]
[338184765,1726377051838,-1317.69,0.00013273,2]
[338184766,1726377051847,-500.0,0.00013273,2]
[338184767,1726377052076,-500.0,0.00013273,2]
[338184768,1726377052087,-500.0,0.00013273,2]
[338184769,1726377052096,-500.0,0.00013273,2]
[338184770,1726377052106,-1260.88,0.00013273,2]
[338184771,1726377052115,-1864.13964296,0.00013273,2]
[338184772,1726377052127,-319.50035704,0.00013273,2]
[338184773,1726377052135,-2377.55,0.00013273,2]
[338184774,1726377052144,-2361.15,0.00013273,2]
[338184775,1726377052154,-500.0,0.00013273,2]
[338184776,1726377052163,-500.0,0.00013273,2]
[338184777,1726377052172,-1885.01,0.00013273,2]
[338184778,1726377052181,-500.0,0.00013273,2]
[338184779,1726377052191,-500.62987785,0.00013273,2]
[338184780,1726377052919,-55.35012215,0.00013273,2]
[338184781,1726377052928,-500.0,0.00013273,2]
[338184782,1726377052938,-500.0,0.00013273,2]
[338184783,1726377052947,-500.0,0.00013273,2]
[338184784,1726377052956,-894.06,0.00013273,2]
[338184785,1726377052965,-1037.57,0.00013273,2]
[338184786,1726377052975,-500.0,0.00013273,2]
[338184787,1726377052984,-500.0,0.00013273,2]
[338184788,1726377052993,-552.91,0.00013273,2]
[338184789,1726377053003,-500.0,0.00013273,2]
[338184790,1726377053012,-500.0,0.00013273,2]
[338184791,1726377053021,-182.43890853,0.00013273,2]
[338184792,1726377053472,-400.08109147,0.00013273,2]
[338184793,1726377053482,-452.41890853,0.00013273,2]
[338184794,1726377053494,-429.15109147,0.00013273,2]
[338184795,1726377053504,-500.0,0.00013273,2]
[338184796,1726377053513,-200.58890853,0.00013273,2]
[338184797,1726377054209,-500.0,0.00012998,2]
[338184798,1726377054219,-500.0,0.00012999,2]
[338184799,1726377054229,-500.0,0.00012999,2]
[338184800,1726377054239,-610.53,0.00012999,2]
[338184801,1726377054248,-312.98890108,0.00013272,2]
[338184802,1726377054258,-299.41109147,0.00013273,2]
[338184803,1726377054267,-737.26,0.00013273,2]
[338184804,1726377054276,-682.54,0.00013273,2]
[338184805,1726377054286,-1440.45,0.00013273,2]
[338184806,1726377054296,-500.0,0.00013273,2]
[338184807,1726377054306,-1254.2,0.00013273,2]
[338184808,1726377054315,-500.0,0.00013273,2]
[338184809,1726377054325,-500.0,0.00013273,2]
[338184810,1726377054334,-500.0,0.00013273,2]
[338184811,1726377054344,-500.0,0.00013273,2]
[338184812,1726377054353,-500.0,0.00013273,2]
[338184813,1726377054362,-500.0,0.00013273,2]
[338184814,1726377054371,-1332.13,0.00013273,2]
[338184815,1726377054380,-500.0,0.00013273,2]
[338184816,1726377054391,-1166.51,0.00013273,2]
[338184817,1726377054402,-500.0,0.00013273,2]
[338184818,1726377054411,-1271.9,0.00013273,2]
[338184819,1726377054422,-500.0,0.00013273,2]
[338184820,1726377054431,-500.0,0.00013273,2]
[338184821,1726377054442,-500.0,0.00013273,2]
[338184822,1726377054452,-1080.6,0.00013273,2]
[338184823,1726377054463,-500.0,0.00013273,2]
[338184824,1726377054473,-998.34,0.00013273,2]
[338184825,1726377054482,-500.0,0.00013273,2]
[338184826,1726377054492,-500.0,0.00013273,2]
[338184827,1726377054501,-500.0,0.00013273,2]
[338184828,1726377054511,-500.0,0.00013273,2]
[338184829,1726377054520,-500.0,0.00013273,2]
[338184830,1726377054529,-500.0,0.00013273,2]
[338184831,1726377054538,-500.0,0.00013273,2]
[338184832,1726377054547,-1366.06,0.00013273,2]
[338184833,1726377054556,-1861.97,0.00013273,2]
[338184834,1726377054565,-505.52609155,0.00013273,2]
[338184835,1726377054575,-500.0,0.00013273,2]
[338184836,1726377054585,-500.0,0.00013273,2]
[338184837,1726377054594,-500.0,0.00013273,2]
[338184838,1726377054603,-500.0,0.00013273,2]
[338184839,1726377054801,-500.0,0.00013273,2]
[338184840,1726377054811,-163.7190977,0.00013273,2]
[338184842,1726377335064,250.0,0.00012116,2]
[338184843,1726377345730,194.97,0.0001211,2]
[338184844,1726377470306,172.93,0.00010959,2]
[338184845,1726377537872,500.0,0.0001513,120]
[338184846,1726377590631,253.13,0.00010102,2]
[338184847,1726377590882,253.13,0.00012366,2]
[338184848,1726377630688,1000.0,0.00012018,2]
[338184849,1726377650520,606.37199001,0.00011164,2]
[338184850,1726377650576,610.42229749,0.00011164,2]
[338184852,1726377727491,1000.0,0.00012641,2]
[338184853,1726377754290,1050.0,0.00011,2]
[338184854,1726377770994,1000.0,0.00013533,30]
[338184855,1726377809495,400.32,0.00012016,2]
[338184856,1726377842606,827.0,0.00012612,2]
[338184857,1726377867014,250.0,0.00012012,2]
[338184858,1726377903287,546.36,0.00012014,2]
[338184859,1726377961322,389.0,0.00012083,2]
[338184860,1726377965927,15839.91,0.00012136,2]
[338184861,1726377983975,562.21,0.00012136,2]
[338184866,1726378031336,175.01,0.00012159,2]
[338184867,1726378100033,370.66,0.00012159,2]
[338184869,1726378114151,-150.0,0.00012643,2]
[338184870,1726378114178,-1198.56338265,0.00012644,2]
[338184874,1726378114926,-1348.56338265,0.00012644,2]
[338184875,1726378114969,-1348.56338265,0.00012644,2]
[338184876,1726378115015,-992.48542546,0.00012644,2]
[338184877,1726378121158,178.88,0.00010959,2]
[338184878,1726378135637,260.44,0.00010245,2]
[338184879,1726378136800,260.44,0.00012509,2]
[338184894,1726378159321,200.0,0.00012151,2]
[338184895,1726378163986,1852.42,0.00012151,2]
[338184914,1726378231449,-904.08234998,0.00012644,2]
[338184917,1726378231461,-771.03208852,0.00012644,2]
[338184921,1726378231472,-327.85685687,0.00012644,2]
[338184922,1726378231492,-1736.47786761,0.00012644,2]
[338184923,1726378231504,-1926.93036806,0.00012644,2]
[338184924,1726378231515,-298.3,0.00012644,2]
[338184925,1726378231552,-8969.12578278,0.00012644,2]
[338184926,1726378231564,-976.47953325,0.00012644,2]
[338184927,1726378231575,-462.57098659,0.00012644,2]
[338184928,1726378231586,-2637.74911535,0.00012644,2]
[338184929,1726378231597,-539.47059194,0.00012644,2]
[338184930,1726378231612,-2481.20419989,0.00012644,2]
[338184931,1726378231623,-619.14994573,0.00012644,2]
[338184932,1726378231634,-7411.37806203,0.00012644,2]
[338184933,1726378231645,-751.39001507,0.00012644,2]
[338184934,1726378231675,-9275.46767329,0.00012644,2]
[338184935,1726378231687,-6558.09753364,0.00012644,2]
[338184936,1726378231699,-2325.21034778,0.00012644,2]
[338184937,1726378231711,-480.06653361,0.00012644,2]
[338184938,1726378231725,-503.88900716,0.00012644,2]
[338184939,1726378231736,-555.90330277,0.00012644,2]
[338184941,1726378231748,-1110.99126467,0.00012644,2]
[338184942,1726378231757,-227.1144,0.00012798,2]
[338184944,1726378231766,-527.58682828,0.00012897,2]
[338184946,1726378231777,-8407.88805117,0.00012897,2]
[338184947,1726378231787,-5846.8916,0.00012898,2]
[338184948,1726378231797,-9475.0282,0.00012898,2]
[338184950,1726378231807,-28740.231,0.00012899,2]
[338184951,1726378231816,-33544.721,0.00012899,2]
[338184953,1726378231825,-162.14826699,0.00012899,2]
[338184954,1726378231834,-237.85037377,0.00012899,2]
[338184955,1726378231843,-178.74737907,0.00012899,2]
[338184956,1726378231853,-3148.02852238,0.00012919,2]
[338184957,1726378231861,-500.0,0.00012973,2]
[338184958,1726378231872,-500.0,0.00012973,2]
[338184959,1726378231881,-500.0,0.00012973,2]
[338184960,1726378231891,-150.72,0.00012987,2]
[338184961,1726378231901,-3167.04,0.00012996,2]
[338184962,1726378231911,-5166.96,0.00012996,2]
[338184963,1726378231922,-499.99,0.00012996,2]
[338184964,1726378231933,-2270.49,0.00012996,2]
[338184965,1726378231943,-500.0,0.00012996,2]
[338184966,1726378231953,-4385.16,0.00012996,2]
[338184967,1726378231963,-239.459777,0.00012996,2]
[338184968,1726378231973,-162.407299,0.00012996,2]
[338184969,1726378231991,-7632.141493,0.00012996,2]
[338184970,1726378232000,-500.0,0.00012996,2]
[338184971,1726378232009,-158.467938,0.00012996,2]
[338184972,1726378232018,-1015.61,0.00012996,2]
[338184973,1726378232030,-1087.41,0.00012996,2]
[338184974,1726378232039,-500.0,0.00012996,2]
[338184975,1726378232048,-1827.37,0.00012996,2]
[338184976,1726378232058,-550.34,0.00012996,2]
[338184977,1726378232070,-1779.93,0.00012996,2]
[338184978,1726378232079,-2364.43,0.00012996,2]
[338184979,1726378232089,-1107.28,0.00012996,2]
[338184980,1726378232098,-2958.16,0.00012996,2]
[338184981,1726378232107,-1290.29,0.00012996,2]
[338184982,1726378232116,-500.0,0.00012996,2]
[338184983,1726378232126,-812.92,0.00012996,2]
[338184984,1726378232135,-1515.94,0.00012996,2]
[338184985,1726378232144,-2053.49,0.00012996,2]
[338184986,1726378232153,-1440.46,0.00012996,2]
[338184987,1726378232162,-1801.28,0.00012996,2]
[338184988,1726378232171,-500.0,0.00012996,2]
[338184989,1726378232181,-500.0,0.00012996,2]
[338184990,1726378232190,-6602.24,0.00012996,2]
[338184991,1726378232199,-857.95,0.00012996,2]
[338184992,1726378232209,-4659.21,0.00012996,2]
[338184993,1726378232218,-241.65711021,0.00012996,2]
[338184994,1726378232227,-2956.74,0.00012996,2]
[338184995,1726378232236,-500.0,0.00012996,2]
[338184996,1726378232246,-2796.03,0.00012996,2]
[338184997,1726378232256,-2104.2,0.00012996,2]
[338184998,1726378232268,-2541.88,0.00012996,2]
[338184999,1726378232277,-500.0,0.00012996,2]
[338185000,1726378232287,-3059.55,0.00012996,2]
[338185001,1726378232296,-1897.84,0.00012996,2]
[338185002,1726378232307,-1356.62,0.00012996,2]
[338185003,1726378232316,-1615.67,0.00012996,2]
[338185004,1726378232325,-500.0,0.00012996,2]
[338185005,1726378232336,-10635.9,0.00012996,2]
[338185006,1726378232345,-1184.03,0.00012996,2]
[338185007,1726378232355,-869.79,0.00012996,2]
[338185008,1726378232364,-1776.07,0.00012996,2]
[338185009,1726378232373,-1852.85,0.00012996,2]
[338185010,1726378232382,-500.0,0.00012996,2]
[338185011,1726378232391,-2631.19,0.00012996,2]
[338185012,1726378232402,-655.12,0.00012996,2]
[338185013,1726378232411,-4573.34,0.00012996,2]
[338185014,1726378232420,-1692.25,0.00012996,2]
[338185015,1726378232431,-2027.65,0.00012996,2]
[338185016,1726378232441,-500.0,0.00012996,2]
[338185017,1726378232451,-2353.99,0.00012996,2]
[338185018,1726378232461,-3472.37962246,0.00012996,2]
[338185019,1726378232473,-505.38615579,0.00012996,2]
[338185020,1726378232495,-22098.11422175,0.00012996,2]
[338185021,1726378232505,-529.43,0.00012996,2]
[338185022,1726378232514,-1800.92,0.00012996,2]
[338185023,1726378232524,-500.0,0.00012996,2]
[338185024,1726378232533,-500.0,0.00012997,2]
[338185025,1726378232542,-500.0,0.00012997,2]
[338185026,1726378232551,-500.0,0.00012997,2]
[338185027,1726378232562,-500.0,0.00012997,2]
[338185028,1726378232571,-500.0,0.00012997,2]
[338185029,1726378232581,-500.0,0.00012997,2]
[338185030,1726378232591,-500.0,0.00012997,2]
[338185031,1726378232600,-500.0,0.00012997,2]
[338185032,1726378232610,-500.0,0.00012997,2]
[338185033,1726378232618,-2309.49,0.00012997,2]
[338185034,1726378232628,-1725.21,0.00012997,2]
[338185035,1726378232639,-500.0,0.00012997,2]
[338185036,1726378232649,-1449.41,0.00012997,2]
[338185037,1726378232660,-500.0,0.00012997,2]
[338185038,1726378232670,-500.0,0.00012997,2]
[338185039,1726378232680,-500.0,0.00012997,2]
[338185040,1726378232690,-1656.95258931,0.00012997,2]
[338185041,1726378233600,-314.33718678,0.00012997,2]
[338185042,1726378233612,-2509.15022391,0.00012997,2]
[338185043,1726378233622,-2151.23,0.00012997,2]
[338185044,1726378233631,-500.0,0.00012997,2]
[338185045,1726378233641,-4143.82,0.00012997,2]
[338185046,1726378233651,-500.0,0.00012997,2]
[338185047,1726378233660,-1519.63,0.00012997,2]
[338185048,1726378233670,-5917.04,0.00012997,2]
[338185049,1726378233679,-500.0,0.00012997,2]
[338185050,1726378233688,-500.0,0.00012997,2]
[338185051,1726378233697,-20000.0,0.00012997,2]
[338185052,1726378233707,-2734.62,0.00012997,2]
[338185053,1726378233716,-500.0,0.00012997,2]
[338185054,1726378233726,-3526.23,0.00012997,2]
[338185055,1726378233735,-500.0,0.00012997,2]
[338185056,1726378233744,-3167.71,0.00012997,2]
[338185057,1726378233754,-1815.57,0.00012997,2]
[338185058,1726378233763,-500.0,0.00012997,2]
[338185059,1726378233773,-7550.49,0.00012997,2]
[338185060,1726378233782,-2651.12,0.00012997,2]
[338185061,1726378233791,-500.0,0.00012997,2]
[338185062,1726378233800,-500.0,0.00012997,2]
[338185063,1726378233809,-4046.64,0.00012997,2]
[338185064,1726378233819,-500.0,0.00012997,2]
[338185065,1726378233828,-500.0,0.00012997,2]
[338185066,1726378233837,-1516.46,0.00012997,2]
[338185067,1726378233846,-634.21,0.00012997,2]
[338185068,1726378233856,-500.0,0.00012997,2]
[338185069,1726378233865,-500.0,0.00012997,2]
[338185070,1726378233874,-744.22,0.00012997,2]
[338185071,1726378233883,-500.0,0.00012997,2]
[338185072,1726378233893,-500.0,0.00012997,2]
[338185073,1726378233901,-1106.19,0.00012997,2]
[338185074,1726378233911,-515.02,0.00012997,2]
[338185075,1726378233920,-579.61,0.00012997,2]
[338185076,1726378233929,-500.0,0.00012997,2]
[338185077,1726378233938,-500.0,0.00012997,2]
[338185078,1726378233947,-1140.63,0.00012997,2]
[338185079,1726378233956,-500.0,0.00012997,2]
[338185080,1726378233965,-1326.84,0.00012997,2]
[338185081,1726378233974,-500.0,0.00012997,2]
[338185082,1726378233984,-500.0,0.00012997,2]
[338185083,1726378233993,-500.0,0.00012997,2]
[338185084,1726378234002,-500.0,0.00012997,2]
[338185085,1726378234012,-500.0,0.00012997,2]
[338185086,1726378234021,-500.0,0.00012997,2]
[338185087,1726378234031,-1391.4,0.00012997,2]
[338185088,1726378234040,-500.0,0.00012997,2]
[338185089,1726378234049,-500.0,0.00012997,2]
[338185090,1726378234058,-500.0,0.00012997,2]
[338185091,1726378234067,-180.13010262,0.00012997,2]
[338185092,1726378234077,-500.0,0.00012997,2]
[338185093,1726378234086,-1573.94,0.00012997,2]
[338185094,1726378234095,-500.0,0.00012997,2]
[338185095,1726378234104,-500.0,0.00012997,2]
[338185096,1726378234113,-500.0,0.00012997,2]
[338185097,1726378234122,-500.0,0.00012997,2]
[338185098,1726378234131,-1340.43,0.00012997,2]
[338185099,1726378234140,-500.0,0.00012997,2]
[338185100,1726378234150,-1393.44,0.00012997,2]
[338185101,1726378234159,-500.0,0.00012997,2]
[338185102,1726378234168,-691.6,0.00012997,2]
[338185103,1726378234177,-500.0,0.00012997,2]
[338185104,1726378234187,-500.0,0.00012997,2]
[338185105,1726378234196,-500.0,0.00012997,2]
[338185106,1726378234206,-500.0,0.00012997,2]
[338185107,1726378234215,-500.0,0.00012997,2]
[338185108,1726378234225,-500.0,0.00012997,2]
[338185109,1726378234235,-500.0,0.00012997,2]
[338185110,1726378234244,-500.0,0.00012997,2]
[338185111,1726378234257,-500.0,0.00012997,2]
[338185112,1726378234277,-500.0,0.00012997,2]
[338185113,1726378234286,-500.0,0.00012997,2]
[338185114,1726378234295,-500.0,0.00012997,2]
[338185115,1726378234305,-500.0,0.00012997,2]
[338185116,1726378234314,-1181.95,0.00012997,2]
[338185117,1726378234323,-500.0,0.00012997,2]
[338185118,1726378234333,-500.0,0.00012997,2]
[338185119,1726378234342,-500.0,0.00012997,2]
[338185120,1726378234352,-500.0,0.00012997,2]
[338185121,1726378234361,-500.0,0.00012997,2]
[338185122,1726378234371,-500.0,0.00012997,2]
[338185123,1726378234380,-855.57,0.00012997,2]
[338185124,1726378234389,-1237.83,0.00012997,2]
[338185125,1726378234399,-500.0,0.00012997,2]
[338185126,1726378234408,-500.0,0.00012997,2]
[338185127,1726378234418,-1777.89,0.00012997,2]
[338185128,1726378234428,-500.0,0.00012997,2]
[338185129,1726378234437,-500.0,0.00012997,2]
[338185130,1726378234447,-1162.14,0.00012997,2]
[338185131,1726378234456,-500.0,0.00012997,2]
[338185132,1726378234466,-500.0,0.00012997,2]
[338185133,1726378234476,-500.0,0.00012997,2]
[338185134,1726378234485,-500.0,0.00012997,2]
[338185135,1726378234495,-500.0,0.00012997,2]
[338185136,1726378234513,-1271.6,0.00012997,2]
[338185137,1726378234526,-500.0,0.00012997,2]
[338185138,1726378234536,-500.0,0.00012997,2]
[338185139,1726378234547,-500.0,0.00012997,2]
[338185140,1726378234557,-500.0,0.00012997,2]
[338185141,1726378234567,-500.0,0.00012997,2]
[338185142,1726378234577,-500.0,0.00012997,2]
[338185143,1726378234586,-1052.16,0.00012997,2]
[338185144,1726378234596,-500.0,0.00012997,2]
[338185145,1726378234605,-500.0,0.00012997,2]
[338185146,1726378234615,-5895.53,0.00012997,2]
[338185147,1726378234625,-500.0,0.00012997,2]
[338185148,1726378234634,-538.69704589,0.00012997,2]
[338185149,1726378234644,-1123.21,0.00012997,2]
[338185150,1726378234654,-500.0,0.00012997,2]
[338185151,1726378234663,-500.0,0.00012997,2]
[338185152,1726378234673,-500.0,0.00012997,2]
[338185153,1726378234683,-6618.22,0.00012997,2]
[338185154,1726378234692,-500.0,0.00012997,2]
[338185155,1726378234703,-1669.9,0.00012997,2]
[338185156,1726378234713,-500.0,0.00012997,2]
[338185157,1726378234722,-1576.24,0.00012997,2]
[338185158,1726378234742,-1621.3,0.00012997,2]
[338185159,1726378234753,-678.1,0.00012997,2]
[338185160,1726378234762,-500.0,0.00012997,2]
[338185161,1726378234772,-500.0,0.00012997,2]
[338185162,1726378234781,-500.0,0.00012997,2]
[338185163,1726378234793,-975.09,0.00012997,2]
[338185164,1726378234803,-500.0,0.00012997,2]
[338185165,1726378234812,-500.0,0.00012997,2]
[338185166,1726378234823,-500.0,0.00012997,2]
[338185167,1726378234833,-2916.88,0.00012997,2]
[338185168,1726378234843,-500.0,0.00012997,2]
[338185169,1726378234852,-665.94,0.00012997,2]
[338185170,1726378234862,-500.0,0.00012997,2]
[338185171,1726378234871,-500.0,0.00012997,2]
[338185172,1726378234880,-500.0,0.00012997,2]
[338185173,1726378234889,-3454.58,0.00012997,2]
[338185174,1726378234898,-2510.37,0.00012997,2]
[338185175,1726378234908,-5489.72,0.00012997,2]
[338185176,1726378234918,-1374.84,0.00012997,2]
[338185177,1726378234928,-500.0,0.00012997,2]
[338185178,1726378234937,-500.0,0.00012997,2]
[338185179,1726378234947,-500.0,0.00012997,2]
[338185180,1726378234956,-500.0,0.00012997,2]
[338185181,1726378234966,-799.67,0.00012997,2]
[338185182,1726378234975,-500.0,0.00012997,2]
[338185183,1726378234986,-940.19,0.00012997,2]
[338185184,1726378234995,-3157.12,0.00012997,2]
[338185185,1726378235015,-500.0,0.00012997,2]
[338185186,1726378235024,-1667.88,0.00012997,2]
[338185187,1726378235034,-644.13145125,0.00012997,2]
[338185188,1726378235043,-500.0,0.00012997,2]
[338185189,1726378235052,-494.68767975,0.00012997,2]
[338185190,1726378235061,-1645.3,0.00012997,2]
[338185191,1726378235070,-500.0,0.00012997,2]
[338185192,1726378235080,-500.0,0.00012997,2]
[338185193,1726378235089,-500.0,0.00012997,2]
[338185194,1726378235099,-500.0,0.00012997,2]
[338185195,1726378235108,-500.0,0.00012997,2]
[338185196,1726378235117,-955.79,0.00012997,2]
[338185197,1726378235126,-1085.64,0.00012997,2]
[338185198,1726378235135,-3266.22,0.00012997,2]
[338185199,1726378235144,-500.0,0.00012997,2]
[338185200,1726378235153,-1632.75,0.00012997,2]
[338185201,1726378235162,-508.15,0.00012997,2]
[338185202,1726378235171,-500.0,0.00012997,2]
[338185203,1726378235181,-500.0,0.00012997,2]
[338185204,1726378235190,-500.0,0.00012997,2]
[338185205,1726378235200,-500.0,0.00012997,2]
[338185206,1726378235210,-804.64,0.00012997,2]
[338185207,1726378235220,-4090.43,0.00012997,2]
[338185208,1726378235237,-1089.05,0.00012997,2]
[338185209,1726378235256,-500.0,0.00012997,2]
[338185210,1726378235267,-500.0,0.00012997,2]
[338185211,1726378235277,-808.43,0.00012997,2]
[338185212,1726378235286,-500.0,0.00012997,2]
[338185213,1726378235296,-500.0,0.00012997,2]
[338185214,1726378235305,-1726.56,0.00012997,2]
[338185215,1726378235314,-500.0,0.00012997,2]
[338185216,1726378235324,-1524.76,0.00012997,2]
[338185217,1726378235334,-820.88,0.00012997,2]
[338185218,1726378235343,-500.0,0.00012997,2]
[338185219,1726378235352,-500.0,0.00012997,2]
[338185220,1726378235362,-500.0,0.00012997,2]
[338185221,1726378235371,-500.0,0.00012997,2]
[338185222,1726378235380,-1137.21,0.00012997,2]
[338185223,1726378235390,-1021.95,0.00012997,2]
[338185224,1726378235399,-500.0,0.00012997,2]
[338185225,1726378235408,-500.0,0.00012997,2]
[338185226,1726378235418,-1231.52,0.00012997,2]
[338185227,1726378235427,-2181.67,0.00012997,2]
[338185228,1726378235437,-500.0,0.00012997,2]
[338185229,1726378235446,-509.75,0.00012997,2]
[338185230,1726378235455,-500.0,0.00012997,2]
[338185231,1726378235464,-1138.43,0.00012997,2]
[338185232,1726378235474,-1534.82,0.00012997,2]
[338185233,1726378235483,-500.0,0.00012997,2]
[338185234,1726378235493,-500.0,0.00012997,2]
[338185235,1726378235503,-500.0,0.00012997,2]
[338185236,1726378235512,-500.0,0.00012997,2]
[338185239,1726378235789,-500.0,0.00012997,2]
[338185240,1726378235799,-500.0,0.00012997,2]
[338185241,1726378235808,-500.0,0.00012997,2]
[338185242,1726378235818,-500.0,0.00012997,2]
[338185243,1726378235827,-500.0,0.00012997,2]
[338185244,1726378235837,-500.0,0.00012997,2]
[338185245,1726378235847,-662.56,0.00012997,2]
[338185246,1726378235856,-500.0,0.00012997,2]
[338185247,1726378235865,-500.0,0.00012997,2]
[338185248,1726378235875,-1801.71,0.00012997,2]
[338185249,1726378235884,-1035.23,0.00012997,2]
[338185250,1726378235894,-500.0,0.00012997,2]
[338185251,1726378235903,-500.0,0.00012997,2]
[338185252,1726378235912,-1626.1,0.00012997,2]
[338185253,1726378235922,-1749.14,0.00012997,2]
[338185254,1726378235932,-500.0,0.00012997,2]
[338185255,1726378235941,-500.0,0.00012997,2]
[338185256,1726378235951,-500.0,0.00012997,2]
[338185257,1726378235960,-502.94,0.00012997,2]
[338185258,1726378235969,-500.0,0.00012997,2]
[338185259,1726378235979,-500.0,0.00012997,2]
[338185260,1726378235999,-500.0,0.00012997,2]
[338185261,1726378236009,-729.07,0.00012997,2]
[338185262,1726378236019,-500.0,0.00012997,2]
[338185263,1726378236028,-500.0,0.00012997,2]
[338185264,1726378236037,-500.0,0.00012997,2]
[338185265,1726378236046,-500.0,0.00012997,2]
[338185266,1726378236055,-1574.66,0.00012997,2]
[338185267,1726378236064,-500.0,0.00012997,2]
[338185268,1726378236073,-5201.29,0.00012997,2]
[338185269,1726378236083,-927.72,0.00012997,2]
[338185270,1726378236092,-1830.44,0.00012997,2]
[338185271,1726378236101,-308.24609198,0.00012997,2]
[338185272,1726378236110,-1130.64,0.00012997,2]